Cogmind - Beta 15 @@@ ROGUE MODE // 2025.05.24 @ 00:53:21 Player: jumpy Result: Destroyed by Y-45 Defender with Beam Rifle Performance ------------- Evolutions (1) 500 Regions Visited (2) 400 Robots Destroyed (20) 100 Value Destroyed (413) 413 Prototype IDs (1) 20 Alien Tech Used (0) 0 Bonus (0) 0 TOTAL SCORE: 1433 Bonus ------- None Cogmind --------- Core Integrity 0/400 Matter 186/300 Energy 100/100 System Corruption 0% Temperature Cool (9) Movement Core (50) Location -9/Materials Parts ------- > --- POWER (1) -------- (None) > --- PROPULSION (2) --- (None) > --- UTILITY (4) ------ (None) > --- WEAPON (2) ------- (None) > --- INVENTORY (5) ---- Light Treads Light Treads Enhanced Autogun Datajack Hammer Peak State ------------ > --- POWER ------------ Light Ion Engine > --- PROPULSION ------- Advanced Treads Advanced Treads > --- UTILITY ---------- Large Storage Unit Improved Terrain Scanner Targeting Computer > --- WEAPON ----------- Enhanced Autogun Enhanced Autogun > --- INVENTORY -------- Light Treads Advanced Treads Advanced Treads Wheel Compact Wheel Seismic Detector Medium Laser Small Laser Enhanced Autogun Rocket Launcher Datajack Hammer [Rating: 22] Favorites ----------- Power Ion Engine Engine Ion Engine Propulsion Light Treads Treads Light Treads Utility Large Storage Unit Device Seismic Detector Storage Large Storage Unit Processor Targeting Computer Weapon Assault Rifle Energy Cannon Particle Cannon Ballistic Gun Assault Rifle Build | -11 -10 -9 ------- Run | Yrd Mat Mat Slots Evolved 2 | . . 2 Power . | . . . Propulsion . | . . . Utility 2 | . . 2 Weapon . | . . . Parts Attached 18 | 8 1 9 Power 2 | 2 . . Engine 2 | 2 . . Core . | . . . Reactor . | . . . Propulsion 4 | 2 . 2 Treads 4 | 2 . 2 Leg . | . . . Wheel . | . . . Hover . | . . . Flight . | . . . Utility 5 | 2 1 2 Device 2 | 1 . 1 Storage 2 | 1 1 . Processor 1 | . . 1 Hackware . | . . . Protection . | . . . Artifact . | . . . Weapon 7 | 2 . 5 Energy Gun . | . . . Energy Cannon 2 | . . 2 Ballistic Gun 5 | 2 . 3 Ballistic Cannon . | . . . Launcher . | . . . Special Weapon . | . . . Impact Weapon . | . . . Slashing Weapon . | . . . Piercing Weapon . | . . . Special Melee Weapon . | . . . Unidentified Prototypes 1 | . . 1 Parts Lost 5 | . . 5 Power 1 | . . 1 Propulsion 2 | . . 2 Utility 2 | . . 2 Weapon . | . . . Highest Loss Streak 3 | . . 3 To Critical Strikes . | . . . Average Backups 8 | 3 8 10 Power . | . 1 . Propulsion 2 | 1 2 2 Utility 1 | . 2 1 Weapon 3 | . 2 4 Tool/Special . | . . . Unused Backups 14 | . . 14 Power . | . . . Propulsion 6 | . . 6 Utility 1 | . . 1 Weapon 6 | . . 6 Tool/Special 1 | . . 1 Average Slot Usage (%) 89 | . 99 69 Engine 12 | . 14 10 Treads 22 | . 28 13 Device 11 | . 14 5 Storage 12 | . 14 10 Processor 3 | . . 9 Energy Cannon 4 | . . 12 Ballistic Gun 21 | . 27 8 Peak Build Rating 22 | 7 8 22 Average Rating 9 | 5 7 12 On Entrance 5 | . 7 8 Naked Turns 18 | . . 18 Heaviest Build 34 | 15 30 34 Greatest Support 44 | 40 40 44 Greatest Overweight (x) 10 | . 1 10 Average Overweight (x) . | . . 1 Largest Inventory Capacity 15 | 8 15 15 Average Capacity 13 | 6 14 14 Most Carried 15 | 6 11 15 Average Carried 8 | 3 8 10 Final Capacity 15 | 8 15 5 Final Carried 11 | 6 11 5 Class Distribution -------------------- 100% | Mutant Dominant Class ---------------- Mutant | -10/Materials Mutant | -9/Materials Resources | -11 -10 -9 ----------- Run | Yrd Mat Mat Matter Collected 562 | 316 170 76 Remotely . | . . . Salvage Created 617 | 96 358 163 Parts 37 | 6 26 5 Haulers Intercepted . | . . . Recyclers Shooed . | . . . Parts Field Recycled . | . . . Retrieved Matter . | . . . Parts Self-Destructed . | . . . Prevented . | . . . Kills | -11 -10 -9 ------- Run | Yrd Mat Mat Combat Hostiles Destroyed 16 | . 10 6 Guns 15 | . 10 5 Cannons 1 | . . 1 Classes Destroyed 5 | 2 2 1 Tunneler 2 | 2 . . Recycler 2 | 1 1 . Swarmer 7 | . 3 4 Grunt 8 | . 7 1 Sentry 1 | . . 1 Best Kill Streak 5 | 3 4 5 Combat Bots Only 5 | . 4 5 Max Kills in Single Turn 2 | 1 1 2 Gunslinging 1 | . . 1 Exploded . | . . . Melee . | . . . Uniques/NPCs Destroyed . | . . . Combat | -11 -10 -9 -------- Run | Yrd Mat Mat Hostile Shots Fired 181 | . 67 114 Missed 51 | . 18 33 Hits 130 | . 49 81 Projectile 130 | . 49 81 Critical Strikes 5 | . . 5 Damage Taken 1386 | . 459 927 Core 475 | . 70 405 Absorbed by Shields . | . . . Core Remaining (%) 86 | 100 72 . Volleys Fired 50 | 6 29 15 Largest 2 | 2 2 2 Hottest 136 | 40 40 136 Shots Fired 99 | 12 58 29 Gun 89 | 12 58 19 Cannon 10 | . . 10 Launcher . | . . . Special . | . . . Kinetic 89 | 12 58 19 Thermal 10 | . . 10 Explosive . | . . . Electromagnetic . | . . . Robot Hit Streak 14 | 2 11 14 Robot Miss Streak 2 | 2 2 2 Penetration Max . | . . . Secondary Targets 5 | . 3 2 Max Gunslinging Chain 1 | . 1 1 Shots Hit Robots 68 | 7 41 20 Core Hits 26 | 4 16 6 Critical Kills . | . . . Critical Parts Destroyed 2 | . 1 1 Critical Strikes 2 | . 1 1 Destroy 2 | . 1 1 Melee Attacks . | . . . Impact . | . . . Slashing . | . . . Piercing . | . . . Sneak Attacks . | . . . Combat Hostiles . | . . . Follow-up Attacks . | . . . Damage Inflicted 1012 | 83 513 416 Guns 799 | 83 503 213 Cannons 203 | . . 203 Explosions . | . . . Melee . | . . . Ramming 10 | . 10 . Kinetic 799 | 83 503 213 Thermal 203 | . . 203 Explosive . | . . . Electromagnetic . | . . . Impact . | . . . Slashing . | . . . Piercing . | . . . Highest Corruption . | . . . Average Corruption . | . . . Corruption Purged . | . . . Corruption Blocked . | . . . Overload Shots . | . . . Overflow Damage 8 | . . 8 Projectiles 8 | . . 8 Explosions . | . . . Melee . | . . . Knockbacks 1 | . 1 . Impact 1 | . 1 . Kinetic . | . . . Secondary . | . . . Self-Inflicted Damage . | . . . Shots . | . . . Rammed 6 | . 3 3 Targets Rammed 7 | . 4 3 Kicked . | . . . Crushed 1 | . 1 . Highest Temperature 318 | . . 318 Average Temperature 107 | . . 107 Received Heat Transfer 600 | . 126 474 Effects 3 | . . 3 Shutdowns 1 | . . 1 Interference 2 | . . 2 Siege Activations . | . . . Martial Activations . | . . . Shielding Activations . | . . . Robots Disrupted . | . . . Combat Hostiles . | . . . Robots Corrupted . | . . . Combat Hostiles . | . . . Parts Fried . | . . . Impact Corruptions . | . . . Robots Melted . | . . . Combat Hostiles . | . . . Parts Melted 2 | . . 2 Heat Transferred 370 | . . 370 Parts Sabotaged . | . . . Parts Stolen . | . . . Parts Stripped . | . . . Power Chain Reactions . | . . . Alert | -11 -10 -9 ------- Run | Yrd Mat Mat Maximum Alert Level 1 | . 1 . Low Security (%) 96 | 100 94 100 Level 1 3 | . 5 . Level 2 . | . . . Level 3 . | . . . Level 4 . | . . . Level 5 . | . . . High Security . | . . . Max Security . | . . . Peak Influence 225 | 10 225 125 Initial 91 | . . 91 Average 42 | 1 43 55 Influence Increases 531 | 15 351 165 Destroy 0b10 Robot/C 320 | . 200 120 Destroy 0b10 Robot/NC 20 | 15 5 . Destroy Leader 70 | . 40 30 Select Force Hacks 60 | . 60 . Destroy Structure 1 | . 1 . Lose Combat Pursuer 60 | . 45 15 Influence Decreases 466 | 15 134 317 Entered New Map 126 | . . 126 Time Decay 300 | 15 134 151 Lost Part 40 | . . 40 Squads Dispatched 5 | . 3 2 Investigation 4 | . 3 1 Extermination . | . . . Reinforcement 1 | . . 1 Assault . | . . . Garrison . | . . . Intercept . | . . . Searches Triggered . | . . . Construction Impeded . | . . . Haulers Reinforced . | . . . Active Scanning Responses . | . . . Cargo Convoy Interrupts . | . . . Stealth | -11 -10 -9 --------- Run | Yrd Mat Mat Distress Signals 2 | . . 2 Communications Jammed . | . . . Distress Signals . | . . . Times Spotted 30 | . 12 18 Peak Tracking Total 7 | . 3 7 Tactical Retreats 3 | . 2 1 Traps | -11 -10 -9 ------- Run | Yrd Mat Mat Traps Triggered 2 | . 2 . Indirectly . | . . . Trap Hack Attempts . | . . . Triggered . | . . . Disarmed . | . . . Reprogrammed . | . . . Reused . | . . . Traps Extracted . | . . . Installed . | . . . Triggered . | . . . Machines | -11 -10 -9 ---------- Run | Yrd Mat Mat Machines Disabled . | . . . Max in Single Turn . | . . . Machines Repaired . | . . . Machines Dismantled . | . . . Machines Sabotaged . | . . . Overloaded Fab Kills . | . . . Hacking | -11 -10 -9 --------- Run | Yrd Mat Mat Machines Accessed 7 | . 5 2 Terminals 4 | . 3 1 Fabricators . | . . . Repair Stations . | . . . Recycling Units 2 | . 2 . Scanalyzers 1 | . . 1 Garrison Access . | . . . Total Hacks 18 | . 10 8 Successful 14 | . 7 7 Failed 4 | . 3 1 Catastrophic . | . . . Database Lockouts . | . . . Manual 15 | . 13 2 Terminals 10 | . 8 2 Fabricators . | . . . Repair Stations . | . . . Recycling Units 2 | . 2 . Scanalyzers 6 | . . 6 Garrison Access . | . . . Terminal Hacks . | . . . Fabricator Hacks . | . . . Repair Station Hacks . | . . . Recycling Unit Hacks . | . . . Scanalyzer 5 | . . 5 Insert Component 2 | . . 2 Analyze 3 | . . 3 Garrison Access Hacks . | . . . Unauthorized Hacks 9 | . 7 2 Terminals 7 | . 5 2 Botnet 4 | . 3 1 Skim 3 | . 2 1 Fabricators . | . . . Repair Stations . | . . . Recycling Units 2 | . 2 . Tunnel 2 | . 2 . Scanalyzers . | . . . Garrison Access . | . . . Data Cores Recovered . | . . . Used . | . . . Hacking Detections 4 | . 2 2 Full Trace Events 2 | . 1 1 Feedback Events . | . . . Feedback Blocked . | . . . Robot Schematics Acquired . | . . . Robots Built . | . . . Authchips . | . . . Time . | . . . Total Robot Build Rating . | . . . Part Schematics Acquired . | . . . Parts Built . | . . . Authchips . | . . . Time . | . . . Total Part Build Rating . | . . . Parts Repaired . | . . . Time . | . . . Parts Recycled . | . . . Recycled Matter . | . . . Retrieved Matter . | . . . Retrieved Components . | . . . Parts Scanalyzed 1 | . . 1 Part Schematics Acquired . | . . . Parts Damaged . | . . . Bothacking | -11 -10 -9 ------------ Run | Yrd Mat Mat Used RIF Installer . | . . . Robots Hacked . | . . . Non-combat . | . . . Combat . | . . . Robot Hacks Applied . | . . . Relay Couplers Released . | . . . Fabnet Peak Effective % . | . . . Robots Rewired . | . . . Allies Hacked . | . . . Hacks Repelled . | . . . Allies | -11 -10 -9 -------- Run | Yrd Mat Mat Total Allies . | . . . Largest Group . | . . . Highest-Rated Group . | . . . Highest-Rated Ally . | . . . Total Orders . | . . . Ally Attacks . | . . . Total Damage . | . . . Kills . | . . . Allies Corrupted . | . . . Allies Melted . | . . . Intel | -11 -10 -9 ------- Run | Yrd Mat Mat Active Infowar (turns) 860 | 35 658 167 Terrain 75 | . . 75 Seismic 785 | 35 658 92 Robot Analysis Total . | . . . Derelict Logs Recovered . | . . . Drone Launches . | . . . Drone Recoveries . | . . . Exploration | -11 -10 -9 ------------- Run | Yrd Mat Mat Turns Passed 1121 | 117 658 346 Spaces Moved 510 | 55 343 112 Core 21 | 4 . 17 Treads 489 | 51 343 95 Legs . | . . . Wheels . | . . . Hover . | . . . Flight . | . . . Fastest Speed 50 | 50 160 145 Average Speed 170 | 152 160 212 Slowest Speed 550 | 160 240 550 Overloaded Moves . | . . . Propulsion Burnouts . | . . . Robots Hopped . | . . . Potential Cave-ins . | . . . Cave-ins Triggered . | . . . Exploration Rate (%) 20 | 6 45 11 Regions Visited 2 Branch Regions . Pre-discovered Areas 2 | . 2 . Known Exits Taken . | . . . Unknown Exits Taken 2 | 1 1 . Scrap Searched . | . . . Spaces Dug . | . . . Terrain Destroyed . | . . . Melee . | . . . Projectile . | . . . AOE . | . . . Terrain Rammed . | . . . Walls Destroyed . | . . . Machines Disabled . | . . . Actions | -11 -10 -9 --------- Run | Yrd Mat Mat Total 652 | 73 389 190 Wait 33 | . 3 30 Move 508 | 54 342 112 Hop . | . . . Pick Up 20 | 5 5 10 Fast Attach 13 | 7 4 2 Attach 3 | . . 3 Detach . | . . . Swap 7 | 1 1 5 Drop 11 | . 1 10 Fire 50 | 6 29 15 Melee . | . . . Ram 2 | . . 2 Kick . | . . . Crush 5 | . 4 1 Escape Stasis . | . . . Rewire . | . . . Trap . | . . . Miscellaneous . | . . . Route ------- -11/Scrapyard -10/Materials (discovered 2 exits: *Mat / [*Min]) -9/Materials (discovered 1 exit: [*Min]) History --------- Turn | Location | Event 8 | -11/Scrapyard | Discovered new exit (range 15) 118 | -11/Scrapyard | Entered Materials 243 | -10/Materials | Discovered new exit (range 11) 301 | -10/Materials | Build established: Mutant 752 | -10/Materials | Discovered new exit (range 11) 776 | -10/Materials | Entered another Materials area 776 | -9/Materials | Evolved 2 slots: Utility x2 900 | -9/Materials | Lost 3 parts (2n1u) 1081 | -9/Materials | Discovered new exit (range 11) 1114 | -9/Materials | Core integrity fell below 50% 1120 | -9/Materials | Core integrity fell below 20% 1122 | -9/Materials | Destroyed by Y-45 Defender with Beam Rifle Last Messages --------------- 01048_ Connecting with Scanalyzer... >>Insert(Enh. Autogun) Scanning Enh. Autogun... Ready to analyze. 01048_ ALERT: Suspicious activity at Scanalyzer M001. Dispatching Investigation squad. 01052_ Acquired Lgt. Treads. 01057_ Acquired Imp. Light Cannon. 01065_ Slammed into A-02 Transporter. 01066_ A-02 Transporter sends out distress signal. 01068_ K-01 Serf collects debris. 01081_ EXIT=FOUND 01101_ Imp. Terrain Scanner destroyed. 01101_ Critical hit (Burn: +37). 01101_ Dropped Enh. Autogun. 01102_ Discarded Targeting Computer. 01103_ Dropped Lrg. Storage Unit. 01103_ Dropped Adv. Treads. 01104_ Dropped Lgt. Ion Engine. 01111_ Critical hit (Burn: +37). Map ----- +----------------------------------------------------+ | ???????????????????????????????????? | | ???????????????????????????????????? | | ???????????????????????????????????? | | ???????????????????????????????????? | | ???????????????????????????????????? | | ???????????????????????????????????? | | ???????????????????????????????????? | | ???????????????????????????????????? | | ???????????????????????????????????? | | ???????????????????????????????????? | | ?????????? ????????????????????????? | | ???????### #???????????????????????? | | ???????# ???????????????????????? | | ???????# ???????????????????????? | | ???????+ Y ???? ??????????????????? | | ???????? ???????????????????????? | | ???????? ??????????? ???????????? | | ????????# #??????????????????????? | | ????????# #??????????? ??????????? | | ????????#Y #????#??#??????????????? | | ????????# #???#??????????????????? | | ????????# ##?????????##??????????? | | ????????# #??????????????????????? | | ???????## [##############?????????? | | ???????# =][!##"T"## #?????????? | | ???????# =!@]a #??????"??? | | ???????# =<]== g g +???????"?? | | ???????# *= #?????????? | | ???????# ####### #?????????? | | ???????####### #?## ## ?????"??? | | ???????#???### ##?# #??????????# | | ?????????????# #??# #??????????? | | ??????????#??# #??# ###########? | | ????????###### #??# # #? | | ?????????#!! #?## # #? | | ???#?????#!! #### * #]! """ #? | | ?????????# * [%=# """ #? | | ??????#??#]] [ % / "" """ #? | | ?????#??## % *% # S"" #? | | ?????????# ##### ## "" #? | | ?????????##### #?#?# ## #? | | ?????????????# #####+########/###? | | ???########### # #???? #??? | | ???# # # % #?????#??? | | ???# T # # #???????#? | | ???# """ [[ # # #?#??????? | | ???# """ + + #????????? | | ???# """ # # #????????? | | ???# # # #??#?????? | | ???# # # #????????? | +----------------------------------------------------+ Best States ------------- Heat Dissipation 28 Energy Generation 10 Energy Capacity 250 Matter Stores 300 Matter Capacity 300 Sight Range 16 Terrain Scan Range 16 Terrain Scan Density 10 Evasion (%) 40 Targeting Accuracy 5 Recoil Reduction 2 Item Schematics ----------------- None Robot Schematics ------------------ None Fabricated ------------ Nothing Repaired ---------- Nothing Alien Tech Used ----------------- None Achievements -------------- None Challenges ------------ None Game ------ Seed FusionOmegaReplicator Manual? 0 Play Time 00:07:33 Cumulative 113.4 hours Start 2025.05.24 @ 00:44:48 End 2025.05.24 @ 00:53:21 Sessions 1 Manual Loads 0 Difficulty Rogue Special Mode None Game No. 291 Rogue 291 Adventurer 0 Explorer 0 Win Type - Total 2 Types 2/0/0/0/0/0/0/0/0/0 Lore% 55 Gallery% 51 Achievement% 44 Wizard Run 0 Options --------- Layout 0 ASCII 0 Keyboard 0 Movement Numpad Keybinds 0 Fullscreen 2 Font 18/Terminus Map View 76x50 Zoom Use 0% Tactical HUD 1 Map Filters NONE Filters NONE Steam 1 RUN: 48f46d2e-8c91-461b-9f87-2a9bfec67a1e